[Event "Live Chess"]
[Site "Chess.com"]
[Date "2024.06.01"]
[Round "-"]
[White "RuslanChessN"]
[Black "viktorskliarov"]
[Result "0-1"]
[WhiteElo "1980"]
[BlackElo "2638"]
[TimeControl "300"]
[EndTime "10:01:07 PDT"]
[Termination "viktorskliarov won on time"]

1. d4 {[%clk 0:04:53.2]} 1... Nf6 {[%clk 0:04:54.4]} 2. c4 {[%clk 0:04:42.8]}
2... e6 {[%clk 0:04:47]} 3. Nc3 {[%clk 0:04:40.8]} 3... Bb4 {[%clk 0:04:39.9]}
4. Qc2 {[%clk 0:04:38.8]} 4... c5 {[%clk 0:04:34.9]} 5. e3 {[%clk 0:04:34.3]}
5... O-O {[%clk 0:04:32.6]} 6. Nf3 {[%clk 0:04:32.7]} 6... b6 {[%clk 0:04:31.3]}
7. Be2 {[%clk 0:04:19.5]} 7... Bb7 {[%clk 0:04:27.5]} 8. O-O {[%clk 0:04:18]}
8... Bxc3 {[%clk 0:04:22]} 9. bxc3 {[%clk 0:04:16.3]} 9... Nc6 {[%clk
0:04:13.2]} 10. e4 {[%clk 0:04:04.6]} 10... d6 {[%clk 0:04:03.1]} 11. d5 {[%clk
0:03:56.6]} 11... Na5 {[%clk 0:03:57.3]} 12. Bg5 {[%clk 0:03:46.4]} 12... h6
{[%clk 0:03:54.1]} 13. Bh4 {[%clk 0:03:41.7]} 13... e5 {[%clk 0:03:50.4]} 14.
Nd2 {[%clk 0:03:39.3]} 14... g5 {[%clk 0:03:48.8]} 15. Bg3 {[%clk 0:03:37.3]}
15... Ba6 {[%clk 0:03:44.2]} 16. h4 {[%clk 0:03:34.7]} 16... Kg7 {[%clk
0:03:40.3]} 17. Kh2 {[%clk 0:02:53]} 17... Rh8 {[%clk 0:03:29.9]} 18. Rh1 {[%clk
0:02:51.6]} 18... Ng8 {[%clk 0:03:09.9]} 19. Qa4 {[%clk 0:02:24]} 19... Qe8
{[%clk 0:03:03.3]} 20. Qxe8 {[%clk 0:02:08.1]} 20... Rxe8 {[%clk 0:02:58.4]} 21.
Raf1 {[%clk 0:02:00.4]} 21... Ne7 {[%clk 0:02:54.2]} 22. Kh3 {[%clk 0:01:58.2]}
22... Ng6 {[%clk 0:02:42.5]} 23. hxg5 {[%clk 0:01:52.7]} 23... hxg5+ {[%clk
0:02:39.7]} 24. Kg4 {[%clk 0:01:51.9]} 24... Nf4 {[%clk 0:02:18.5]} 25. Bxf4
{[%clk 0:01:45.9]} 25... gxf4 {[%clk 0:02:13]} 26. g3 {[%clk 0:01:32.1]} 26...
fxg3 {[%clk 0:02:00.5]} 27. Kxg3 {[%clk 0:01:23.4]} 27... Kf6 {[%clk 0:01:59.3]}
28. f4 {[%clk 0:01:22]} 28... Reg8+ {[%clk 0:01:53.5]} 29. Kf3 {[%clk
0:01:20.5]} 29... Bc8 {[%clk 0:01:39.2]} 30. f5 {[%clk 0:01:18.2]} 30... Ba6
{[%clk 0:01:30.4]} 31. Bd3 {[%clk 0:01:01]} 31... Ke7 {[%clk 0:01:20.9]} 32. Be2
{[%clk 0:00:59.3]} 32... Kf6 {[%clk 0:01:09.2]} 33. Bd3 {[%clk 0:00:57.9]} 33...
Bc8 {[%clk 0:01:01.1]} 34. Be2 {[%clk 0:00:55.9]} 34... Bd7 {[%clk 0:00:59]} 35.
Ke3 {[%clk 0:00:52.6]} 35... a6 {[%clk 0:00:57.4]} 36. Nb3 {[%clk 0:00:46.7]}
36... Nb7 {[%clk 0:00:45.7]} 37. Rb1 {[%clk 0:00:39.5]} 37... Rg3+ {[%clk
0:00:34.8]} 38. Kd2 {[%clk 0:00:33.8]} 38... Rxh1 {[%clk 0:00:31]} 39. Rxh1
{[%clk 0:00:31.1]} 39... b5 {[%clk 0:00:29.8]} 40. Rh6+ {[%clk 0:00:27.7]} 40...
Ke7 {[%clk 0:00:27.8]} 41. Nc1 {[%clk 0:00:19.6]} 41... Na5 {[%clk 0:00:17.9]}
42. cxb5 {[%clk 0:00:16.7]} 42... Bxb5 {[%clk 0:00:14.1]} 43. Bxb5 {[%clk
0:00:14.6]} 43... axb5 {[%clk 0:00:13.1]} 44. Ne2 {[%clk 0:00:14.5]} 44... Nc4+
{[%clk 0:00:13]} 45. Kc2 {[%clk 0:00:10.6]} 45... Rg2 {[%clk 0:00:11.2]} 46. Kd1
{[%clk 0:00:09]} 46... Ne3+ {[%clk 0:00:08.2]} 47. Kd2 {[%clk 0:00:08.1]} 47...
Ng4 {[%clk 0:00:04.6]} 48. Rh7 {[%clk 0:00:03.1]} 48... Nf6 {[%clk 0:00:04.5]}
49. Rh3 {[%clk 0:00:01]} 49... Rg4 {[%clk 0:00:04.4]} 0-1

[Event "Live Chess"]
[Site "Chess.com"]
[Date "2024.06.01"]
[Round "-"]
[White "updatedopenings2024"]
[Black "StoreySniper"]
[Result "0-1"]
[WhiteElo "1786"]
[BlackElo "2547"]
[TimeControl "300"]
[EndTime "10:01:31 PDT"]
[Termination "StoreySniper won by resignation"]

1. e4 {[%clk 0:04:58.7]} 1... g6 {[%clk 0:04:58.9]} 2. d4 {[%clk 0:04:57.9]}
2... Bg7 {[%clk 0:04:58.5]} 3. Nc3 {[%clk 0:04:57.6]} 3... c5 {[%clk 0:04:57.9]}
4. Be3 {[%clk 0:04:56.7]} 4... Qa5 {[%clk 0:04:56.4]} 5. Nf3 {[%clk 0:04:54.5]}
5... Nf6 {[%clk 0:04:55.4]} 6. Qd2 {[%clk 0:04:50.3]} 6... Nc6 {[%clk
0:04:52.1]} 7. d5 {[%clk 0:04:43.8]} 7... Nb4 {[%clk 0:04:51]} 8. e5 {[%clk
0:04:22.2]} 8... Ng4 {[%clk 0:04:43.2]} 9. Bf4 {[%clk 0:04:19.1]} 9... f6 {[%clk
0:04:29.3]} 10. exf6 {[%clk 0:04:12.6]} 10... Nxf6 {[%clk 0:04:24.2]} 11. Bc4
{[%clk 0:04:05]} 11... a6 {[%clk 0:04:09.2]} 12. O-O {[%clk 0:04:03.9]} 12... b5
{[%clk 0:04:06.4]} 13. Be2 {[%clk 0:03:51.5]} 13... d6 {[%clk 0:04:01.5]} 14. a3
{[%clk 0:03:39.2]} 14... Nbxd5 {[%clk 0:03:35.9]} 15. Nxd5 {[%clk 0:03:37.7]}
15... Qxd2 {[%clk 0:03:35]} 16. Nxf6+ {[%clk 0:03:36.9]} 16... Bxf6 {[%clk
0:03:34.2]} 17. Nxd2 {[%clk 0:03:10.7]} 17... Bxb2 {[%clk 0:03:33]} 18. Ra2
{[%clk 0:03:05.5]} 18... Bg7 {[%clk 0:03:24.8]} 19. c4 {[%clk 0:03:04.3]} 19...
O-O {[%clk 0:03:22.2]} 20. Bg3 {[%clk 0:03:02]} 20... Be6 {[%clk 0:03:17.7]} 21.
Bf3 {[%clk 0:02:46.9]} 21... Ra7 {[%clk 0:03:05.5]} 22. Re1 {[%clk 0:02:45.4]}
22... Bf7 {[%clk 0:03:02.5]} 23. Bd5 {[%clk 0:02:23.8]} 23... Bxd5 {[%clk
0:02:50.9]} 24. cxd5 {[%clk 0:02:23.7]} 24... a5 {[%clk 0:02:36.8]} 25. Rb1
{[%clk 0:02:18.4]} 25... Rb8 {[%clk 0:02:34.5]} 26. a4 {[%clk 0:02:07.2]} 26...
b4 {[%clk 0:02:25.9]} 27. Nc4 {[%clk 0:02:06]} 27... Rf8 {[%clk 0:02:21.2]} 28.
Re2 {[%clk 0:01:58.4]} 28... Bd4 {[%clk 0:02:14.1]} 29. h3 {[%clk 0:01:49.9]}
29... Rf5 {[%clk 0:02:11.7]} 30. Re6 {[%clk 0:01:39.6]} 30... Rxd5 {[%clk
0:02:05.7]} 31. Rbe1 {[%clk 0:01:38.4]} 31... Kf7 {[%clk 0:01:59.1]} 32. Bh4
{[%clk 0:01:07.7]} 32... g5 {[%clk 0:01:45.3]} 33. Bg3 {[%clk 0:01:06.5]} 33...
Bf6 {[%clk 0:01:27.6]} 34. R1e4 {[%clk 0:00:29.1]} 34... Rd1+ {[%clk 0:01:19.7]}
35. Kh2 {[%clk 0:00:28.2]} 35... d5 {[%clk 0:01:18.8]} 36. Re1 {[%clk
0:00:18.7]} 0-1

[Event "Live Chess"]
[Site "Chess.com"]
[Date "2024.06.01"]
[Round "-"]
[White "YrrriKharkiv"]
[Black "halfberg"]
[Result "1-0"]
[WhiteElo "2133"]
[BlackElo "1901"]
[TimeControl "300"]
[EndTime "10:01:33 PDT"]
[Termination "YrrriKharkiv won by resignation"]

1. d4 {[%clk 0:04:56]} 1... Nf6 {[%clk 0:04:58.2]} 2. Bf4 {[%clk 0:04:54.8]}
2... d6 {[%clk 0:04:54]} 3. Nc3 {[%clk 0:04:52.1]} 3... g6 {[%clk 0:04:52.9]} 4.
e4 {[%clk 0:04:50]} 4... Bg7 {[%clk 0:04:51.5]} 5. Be2 {[%clk 0:04:48.7]} 5...
O-O {[%clk 0:04:50.2]} 6. h4 {[%clk 0:04:45.4]} 6... h6 {[%clk 0:04:48.6]} 7.
Qd2 {[%clk 0:04:43.9]} 7... Kh7 {[%clk 0:04:47.1]} 8. Nh3 {[%clk 0:04:41.3]}
8... Nc6 {[%clk 0:04:26.7]} 9. Ng5+ {[%clk 0:04:37.2]} 9... Kg8 {[%clk
0:04:24.8]} 10. Nf3 {[%clk 0:04:33.4]} 10... Kh7 {[%clk 0:04:22.3]} 11. Rd1
{[%clk 0:04:28.9]} 11... Bd7 {[%clk 0:03:52.6]} 12. e5 {[%clk 0:04:21.7]} 12...
Nh5 {[%clk 0:03:48]} 13. Be3 {[%clk 0:03:34.4]} 13... dxe5 {[%clk 0:03:39.2]}
14. dxe5 {[%clk 0:03:31.6]} 14... Be6 {[%clk 0:03:08.6]} 15. g4 {[%clk
0:03:19.8]} 15... Qxd2+ {[%clk 0:03:04.8]} 16. Rxd2 {[%clk 0:03:18.4]} 16...
Bxg4 {[%clk 0:03:03.6]} 17. Ng5+ {[%clk 0:03:17.1]} 17... hxg5 {[%clk
0:03:00.2]} 18. Bxg4 {[%clk 0:03:16.1]} 18... gxh4 {[%clk 0:02:56.5]} 19. Rxh4
{[%clk 0:03:12.5]} 19... Nxe5 {[%clk 0:02:53.4]} 20. Bxh5 {[%clk 0:03:11.4]}
20... gxh5 {[%clk 0:02:51.7]} 21. Rxh5+ {[%clk 0:03:10.5]} 21... Kg8 {[%clk
0:02:47]} 22. Rd5 {[%clk 0:02:58.9]} 22... Ng6 {[%clk 0:02:15.9]} 23. Rd7 {[%clk
0:02:36.2]} 23... b6 {[%clk 0:01:48.4]} 24. Rxc7 {[%clk 0:02:26.6]} 24... Rfc8
{[%clk 0:01:37.9]} 25. Rd7 {[%clk 0:02:11.2]} 25... Bxc3+ {[%clk 0:01:34.6]} 26.
bxc3 {[%clk 0:02:09.3]} 26... Rxc3 {[%clk 0:01:34.1]} 27. Kd1 {[%clk 0:01:53.6]}
27... Rac8 {[%clk 0:01:32.7]} 28. Rd2 {[%clk 0:01:49.8]} 28... f6 {[%clk
0:01:17.3]} 29. Rhd5 {[%clk 0:01:34.5]} 29... Kf7 {[%clk 0:01:13.6]} 30. R5d3
{[%clk 0:01:13.5]} 30... Ne5 {[%clk 0:01:03.7]} 31. Rxc3 {[%clk 0:01:09.6]}
31... Rxc3 {[%clk 0:01:02.5]} 32. Bd4 {[%clk 0:01:09.1]} 32... Ra3 {[%clk
0:00:59.4]} 33. Bxe5 {[%clk 0:01:08]} 33... fxe5 {[%clk 0:00:58.2]} 34. c4
{[%clk 0:00:55.2]} 34... Rc3 {[%clk 0:00:49]} 35. Rd7 {[%clk 0:00:51.1]} 35...
Ra3 {[%clk 0:00:37.5]} 36. Rd2 {[%clk 0:00:43.6]} 36... Ke6 {[%clk 0:00:36.6]}
37. Kc1 {[%clk 0:00:40.4]} 37... Rc3+ {[%clk 0:00:33.6]} 38. Kb2 {[%clk
0:00:39.9]} 38... Rxc4 {[%clk 0:00:31.7]} 39. Kb3 {[%clk 0:00:39.4]} 39... Rd4
{[%clk 0:00:29.2]} 40. Rc2 {[%clk 0:00:38.4]} 40... Kd6 {[%clk 0:00:24.7]} 41.
Rc8 {[%clk 0:00:36.3]} 41... Rd2 {[%clk 0:00:23.3]} 42. Rd8+ {[%clk 0:00:34.8]}
42... Kc5 {[%clk 0:00:19.9]} 43. Rxd2 {[%clk 0:00:34.2]} 43... a5 {[%clk
0:00:17.3]} 44. Re2 {[%clk 0:00:33.3]} 44... Kd4 {[%clk 0:00:15.9]} 45. Ka4
{[%clk 0:00:32.2]} 45... e4 {[%clk 0:00:13.9]} 46. Kb5 {[%clk 0:00:31.1]} 46...
Kd3 {[%clk 0:00:13.5]} 47. Re3+ {[%clk 0:00:29.8]} 47... Kd4 {[%clk 0:00:11.1]}
48. Kxb6 {[%clk 0:00:28.8]} 1-0

[Event "Live Chess"]
[Site "Chess.com"]
[Date "2024.06.01"]
[Round "-"]
[White "SirGerhard"]
[Black "LaupMiths"]
[Result "1-0"]
[WhiteElo "2764"]
[BlackElo "1801"]
[TimeControl "300"]
[EndTime "10:01:48 PDT"]
[Termination "SirGerhard won by checkmate"]

1. d4 {[%clk 0:04:58.7]} 1... Nf6 {[%clk 0:04:55]} 2. Bg5 {[%clk 0:04:57.3]}
2... Ne4 {[%clk 0:04:44.8]} 3. Bf4 {[%clk 0:04:56.4]} 3... d5 {[%clk 0:04:42.8]}
4. e3 {[%clk 0:04:55.4]} 4... g6 {[%clk 0:04:35.4]} 5. Bd3 {[%clk 0:04:54.4]}
5... Nd6 {[%clk 0:04:33.4]} 6. Nd2 {[%clk 0:04:52.5]} 6... Bg7 {[%clk
0:04:30.9]} 7. Ngf3 {[%clk 0:04:50.3]} 7... O-O {[%clk 0:04:28.3]} 8. O-O {[%clk
0:04:49.7]} 8... c6 {[%clk 0:04:24.5]} 9. h3 {[%clk 0:04:47.6]} 9... Nd7 {[%clk
0:04:19.3]} 10. c4 {[%clk 0:04:46.8]} 10... Nf6 {[%clk 0:04:15.6]} 11. Qc2
{[%clk 0:04:44]} 11... dxc4 {[%clk 0:04:05.8]} 12. Nxc4 {[%clk 0:04:43]} 12...
Nxc4 {[%clk 0:04:04]} 13. Bxc4 {[%clk 0:04:42.1]} 13... Bf5 {[%clk 0:04:02.2]}
14. Qb3 {[%clk 0:04:40.4]} 14... Qb6 {[%clk 0:04:00.1]} 15. Ne5 {[%clk
0:04:37.1]} 15... Qxb3 {[%clk 0:03:58.2]} 16. axb3 {[%clk 0:04:35.9]} 16... Nd7
{[%clk 0:03:45.2]} 17. g4 {[%clk 0:04:11.2]} 17... Nxe5 {[%clk 0:03:41.8]} 18.
dxe5 {[%clk 0:04:10.5]} 18... Be4 {[%clk 0:03:36.8]} 19. Rfd1 {[%clk 0:04:05.2]}
19... b5 {[%clk 0:03:31.3]} 20. Bf1 {[%clk 0:04:03.1]} 20... Bd5 {[%clk
0:03:27.4]} 21. b4 {[%clk 0:04:01.4]} 21... g5 {[%clk 0:03:21.5]} 22. Bg3 {[%clk
0:03:53.9]} 22... Rfd8 {[%clk 0:03:10.7]} 23. Bg2 {[%clk 0:03:48.5]} 23... e6
{[%clk 0:03:09.2]} 24. Rac1 {[%clk 0:03:45.3]} 24... Rac8 {[%clk 0:03:00.4]} 25.
Ra1 {[%clk 0:03:35.7]} 25... Rc7 {[%clk 0:02:56]} 26. e4 {[%clk 0:03:34.1]}
26... Bf8 {[%clk 0:02:48.5]} 27. exd5 {[%clk 0:03:32.7]} 27... cxd5 {[%clk
0:02:46.6]} 28. Ra5 {[%clk 0:03:29.2]} 28... Rb7 {[%clk 0:02:42.1]} 29. Bf1
{[%clk 0:03:25.2]} 29... Bxb4 {[%clk 0:02:33.4]} 30. Rxb5 {[%clk 0:03:24]} 30...
Rxb5 {[%clk 0:02:30.9]} 31. Bxb5 {[%clk 0:03:23.1]} 31... Rb8 {[%clk 0:02:29.3]}
32. Bd3 {[%clk 0:03:21.9]} 32... Bc5 {[%clk 0:02:26.7]} 33. Rb1 {[%clk
0:03:13.5]} 33... Rb3 {[%clk 0:02:20.7]} 34. Rc1 {[%clk 0:02:56.5]} 34... Bxf2+
{[%clk 0:02:03.5]} 35. Bxf2 {[%clk 0:02:48.4]} 35... Rxd3 {[%clk 0:02:01.9]} 36.
Kg2 {[%clk 0:02:47.2]} 36... Rb3 {[%clk 0:01:59.5]} 37. Rc8+ {[%clk 0:02:38.9]}
37... Kg7 {[%clk 0:01:57.5]} 38. Ra8 {[%clk 0:02:38]} 38... Rxb2 {[%clk
0:01:55.4]} 39. Rxa7 {[%clk 0:02:37.4]} 39... Re2 {[%clk 0:01:53.2]} 40. Kf3
{[%clk 0:02:35.3]} 40... Re4 {[%clk 0:01:49.3]} 41. Bc5 {[%clk 0:02:29.5]} 41...
Kg6 {[%clk 0:01:47.8]} 42. Ra8 {[%clk 0:02:22.1]} 42... f5 {[%clk 0:01:40.5]}
43. Bd6 {[%clk 0:02:14.8]} 43... Rf4+ {[%clk 0:01:35.4]} 44. Kg3 {[%clk
0:02:13.1]} 44... d4 {[%clk 0:01:19.8]} 45. Rf8 {[%clk 0:02:00.7]} 45... Re4
{[%clk 0:01:17.7]} 46. Rf6+ {[%clk 0:01:59]} 46... Kg7 {[%clk 0:01:15.9]} 47.
Bf8+ {[%clk 0:01:58.2]} 47... Kg8 {[%clk 0:01:14.5]} 48. Bh6 {[%clk 0:01:57.8]}
48... f4+ {[%clk 0:01:08.6]} 49. Kf2 {[%clk 0:01:56]} 49... Rxe5 {[%clk
0:01:08]} 50. Rf8# {[%clk 0:01:54.9]} 1-0

[Event "Live Chess"]
[Site "Chess.com"]
[Date "2024.06.01"]
[Round "-"]
[White "Andysav3"]
[Black "CheckThis4"]
[Result "0-1"]
[WhiteElo "1863"]
[BlackElo "2690"]
[TimeControl "300"]
[EndTime "10:01:55 PDT"]
[Termination "CheckThis4 won by resignation"]

1. e4 {[%clk 0:04:57.6]} 1... d5 {[%clk 0:04:54.9]} 2. exd5 {[%clk 0:04:55.8]}
2... c6 {[%clk 0:04:54.3]} 3. d4 {[%clk 0:04:53.7]} 3... cxd5 {[%clk 0:04:52.8]}
4. Nf3 {[%clk 0:04:51.9]} 4... Nf6 {[%clk 0:04:50.1]} 5. Be2 {[%clk 0:04:48.9]}
5... Nc6 {[%clk 0:04:47.9]} 6. O-O {[%clk 0:04:47.5]} 6... Bg4 {[%clk
0:04:45.4]} 7. h3 {[%clk 0:04:43.9]} 7... Bxf3 {[%clk 0:04:43.5]} 8. Bxf3 {[%clk
0:04:42.6]} 8... e6 {[%clk 0:04:43.1]} 9. Bf4 {[%clk 0:04:30]} 9... Bd6 {[%clk
0:04:35.9]} 10. Bxd6 {[%clk 0:04:24]} 10... Qxd6 {[%clk 0:04:35.8]} 11. c3
{[%clk 0:04:18.4]} 11... O-O {[%clk 0:04:34.2]} 12. Nd2 {[%clk 0:04:15.2]} 12...
b5 {[%clk 0:04:26.1]} 13. b4 {[%clk 0:04:06.3]} 13... Nd7 {[%clk 0:04:20.6]} 14.
Nb3 {[%clk 0:04:02.4]} 14... Nb6 {[%clk 0:04:19.4]} 15. Nc5 {[%clk 0:03:57.8]}
15... Nc4 {[%clk 0:04:14.9]} 16. a4 {[%clk 0:03:51]} 16... a6 {[%clk 0:04:06.3]}
17. Qd3 {[%clk 0:03:37.8]} 17... h6 {[%clk 0:04:01.9]} 18. Rfe1 {[%clk
0:03:34.7]} 18... Rfb8 {[%clk 0:03:56.7]} 19. g3 {[%clk 0:03:29.8]} 19... bxa4
{[%clk 0:03:54.5]} 20. Bg2 {[%clk 0:03:16.3]} 20... a5 {[%clk 0:03:52.7]} 21.
bxa5 {[%clk 0:03:03.8]} 21... Rxa5 {[%clk 0:03:47.8]} 22. Nxa4 {[%clk
0:02:47.3]} 22... Rba8 {[%clk 0:03:42.7]} 23. Qc2 {[%clk 0:02:46.3]} 23... Na3
{[%clk 0:03:35.6]} 24. Qb3 {[%clk 0:02:32.7]} 24... Rxa4 {[%clk 0:03:33.1]} 0-1

[Event "Live Chess"]
[Site "Chess.com"]
[Date "2024.06.01"]
[Round "-"]
[White "DJ_Lambton"]
[Black "degringolade64"]
[Result "1-0"]
[WhiteElo "1789"]
[BlackElo "2041"]
[TimeControl "300"]
[EndTime "10:02:09 PDT"]
[Termination "DJ_Lambton won by resignation"]

1. c4 {[%clk 0:04:58.3]} 1... e5 {[%clk 0:04:58.2]} 2. g3 {[%clk 0:04:57.8]}
2... c6 {[%clk 0:04:55.3]} 3. Bg2 {[%clk 0:04:56.9]} 3... d5 {[%clk 0:04:53]} 4.
cxd5 {[%clk 0:04:56.4]} 4... cxd5 {[%clk 0:04:52.6]} 5. d4 {[%clk 0:04:56.2]}
5... e4 {[%clk 0:04:51.3]} 6. Nc3 {[%clk 0:04:55.1]} 6... Nf6 {[%clk 0:04:49]}
7. Bg5 {[%clk 0:04:54]} 7... Nbd7 {[%clk 0:04:47.5]} 8. e3 {[%clk 0:04:53]} 8...
h6 {[%clk 0:04:44]} 9. Bxf6 {[%clk 0:04:51.3]} 9... Nxf6 {[%clk 0:04:43.1]} 10.
Nge2 {[%clk 0:04:51]} 10... Bd6 {[%clk 0:04:39.8]} 11. O-O {[%clk 0:04:49.3]}
11... O-O {[%clk 0:04:38.2]} 12. Qb3 {[%clk 0:04:48.4]} 12... Bg4 {[%clk
0:04:35.7]} 13. Nc1 {[%clk 0:04:45]} 13... Be6 {[%clk 0:04:21.6]} 14. N1e2
{[%clk 0:04:43.5]} 14... Qd7 {[%clk 0:04:18.1]} 15. Rfe1 {[%clk 0:04:42.5]}
15... Rad8 {[%clk 0:04:15.4]} 16. Rac1 {[%clk 0:04:41.3]} 16... Bh3 {[%clk
0:04:12.6]} 17. Nb5 {[%clk 0:04:38]} 17... Bb8 {[%clk 0:04:10.9]} 18. Nbc3
{[%clk 0:04:31.5]} 18... Bxg2 {[%clk 0:04:03.6]} 19. Kxg2 {[%clk 0:04:31.4]}
19... Qf5 {[%clk 0:04:02.1]} 20. Nf4 {[%clk 0:04:27.8]} 20... Bxf4 {[%clk
0:03:52.4]} 21. exf4 {[%clk 0:04:27.7]} 21... g5 {[%clk 0:03:15.6]} 22. fxg5
{[%clk 0:04:23.9]} 22... Qf3+ {[%clk 0:03:14.4]} 23. Kg1 {[%clk 0:04:23.1]}
23... Ng4 {[%clk 0:03:13.6]} 24. Rc2 {[%clk 0:04:20.6]} 24... e3 {[%clk
0:03:03.5]} 25. Ree2 {[%clk 0:04:13.6]} 25... exf2+ {[%clk 0:03:01.5]} 26. Rxf2
{[%clk 0:04:12.9]} 26... Nxf2 {[%clk 0:02:59.8]} 27. Rxf2 {[%clk 0:04:12.8]}
27... Qe3 {[%clk 0:02:50.7]} 28. Nxd5 {[%clk 0:04:09.7]} 28... Qxb3 {[%clk
0:02:48.3]} 29. Nf6+ {[%clk 0:04:07.7]} 29... Kg7 {[%clk 0:02:46.1]} 30. axb3
{[%clk 0:04:07.2]} 30... hxg5 {[%clk 0:02:44.4]} 31. Ne4 {[%clk 0:04:00.1]}
31... Rxd4 {[%clk 0:02:25.7]} 32. Nxg5 {[%clk 0:03:57.6]} 32... Rd3 {[%clk
0:02:04.5]} 33. Kg2 {[%clk 0:03:52]} 33... Rxb3 {[%clk 0:02:02.7]} 34. Ne4
{[%clk 0:03:50.5]} 34... Re3 {[%clk 0:01:34.5]} 35. Nd6 {[%clk 0:03:49]} 35...
b6 {[%clk 0:01:32.3]} 36. Nf5+ {[%clk 0:03:48.3]} 36... Kg6 {[%clk 0:01:25.6]}
37. Nxe3 {[%clk 0:03:48.2]} 37... Re8 {[%clk 0:01:22.7]} 38. Nc4 {[%clk
0:03:46.7]} 38... Re4 {[%clk 0:01:20.9]} 39. Nd6 {[%clk 0:03:45.3]} 39... Re7
{[%clk 0:01:12.5]} 40. Nc8 {[%clk 0:03:43.9]} 40... Rc7 {[%clk 0:01:10.7]} 41.
Nd6 {[%clk 0:03:41.3]} 41... a5 {[%clk 0:01:09.8]} 42. h4 {[%clk 0:03:34.1]}
42... a4 {[%clk 0:01:07.6]} 43. Nb5 {[%clk 0:03:32.4]} 43... Rc4 {[%clk
0:01:02.7]} 44. Nd6 {[%clk 0:03:28.5]} 44... Rc7 {[%clk 0:01:00.4]} 45. Rd2
{[%clk 0:03:26.9]} 45... Rc5 {[%clk 0:00:54.6]} 46. Ne4 {[%clk 0:03:25.1]} 46...
Re5 {[%clk 0:00:53.2]} 47. Nc3 {[%clk 0:03:23.7]} 47... b5 {[%clk 0:00:51.3]}
48. Rd5 {[%clk 0:03:20.5]} 48... Rxd5 {[%clk 0:00:43.5]} 49. Nxd5 {[%clk
0:03:20.4]} 49... Kf5 {[%clk 0:00:41.6]} 50. Kf3 {[%clk 0:03:17.2]} 50... Ke5
{[%clk 0:00:40.8]} 51. Nc3 {[%clk 0:03:16.6]} 1-0

[Event "Live Chess"]
[Site "Chess.com"]
[Date "2024.06.01"]
[Round "-"]
[White "vincents82"]
[Black "GEMdzq"]
[Result "0-1"]
[WhiteElo "2145"]
[BlackElo "2365"]
[TimeControl "300"]
[EndTime "10:02:23 PDT"]
[Termination "GEMdzq won by checkmate"]

1. e4 {[%clk 0:04:53.5]} 1... Nf6 {[%clk 0:04:58.4]} 2. e5 {[%clk 0:04:33.4]}
2... Nd5 {[%clk 0:04:57.3]} 3. d4 {[%clk 0:04:32.1]} 3... d6 {[%clk 0:04:55.7]}
4. Nf3 {[%clk 0:04:31]} 4... g6 {[%clk 0:04:53.9]} 5. Be2 {[%clk 0:04:28.7]}
5... Bg7 {[%clk 0:04:52.1]} 6. O-O {[%clk 0:04:27.9]} 6... O-O {[%clk
0:04:48.6]} 7. c4 {[%clk 0:04:25.8]} 7... Nb6 {[%clk 0:04:46.3]} 8. h3 {[%clk
0:04:25]} 8... c5 {[%clk 0:04:43.5]} 9. dxc5 {[%clk 0:04:10.5]} 9... dxc5 {[%clk
0:04:43.4]} 10. Nc3 {[%clk 0:04:06]} 10... Nc6 {[%clk 0:04:40.1]} 11. Be3 {[%clk
0:04:01.7]} 11... Be6 {[%clk 0:04:25.3]} 12. b3 {[%clk 0:03:54]} 12... Nxe5
{[%clk 0:04:19.1]} 13. Rc1 {[%clk 0:03:41.8]} 13... Nbd7 {[%clk 0:03:56.8]} 14.
Nd5 {[%clk 0:03:37.7]} 14... Bxd5 {[%clk 0:03:52.3]} 15. cxd5 {[%clk 0:03:35]}
15... Rc8 {[%clk 0:03:47.1]} 16. Nxe5 {[%clk 0:03:13.5]} 16... Bxe5 {[%clk
0:03:47]} 17. f4 {[%clk 0:03:04.5]} 17... Bg7 {[%clk 0:03:36.5]} 18. f5 {[%clk
0:02:58.7]} 18... b6 {[%clk 0:03:35.6]} 19. Ba6 {[%clk 0:02:50.2]} 19... Rc7
{[%clk 0:03:31.4]} 20. Bf4 {[%clk 0:02:48.2]} 20... Be5 {[%clk 0:03:29.8]} 21.
Bxe5 {[%clk 0:02:38.9]} 21... Nxe5 {[%clk 0:03:28.4]} 22. Qe2 {[%clk 0:02:37.3]}
22... f6 {[%clk 0:03:17.2]} 23. fxg6 {[%clk 0:02:34.5]} 23... hxg6 {[%clk
0:03:16.1]} 24. Rcd1 {[%clk 0:02:26.7]} 24... Kg7 {[%clk 0:03:11.9]} 25. Bd3
{[%clk 0:02:13.3]} 25... Rh8 {[%clk 0:02:57.8]} 26. Rfe1 {[%clk 0:01:54.9]}
26... Qd6 {[%clk 0:02:52.7]} 27. Bb1 {[%clk 0:01:44.7]} 27... Rcc8 {[%clk
0:02:47.3]} 28. Qc2 {[%clk 0:01:43.6]} 28... Rh6 {[%clk 0:02:41.8]} 29. g4
{[%clk 0:01:18.8]} 29... Nf3+ {[%clk 0:02:38.1]} 30. Kg2 {[%clk 0:01:16.3]}
30... Qh2+ {[%clk 0:02:30.4]} 31. Kxf3 {[%clk 0:01:15]} 31... Rxh3+ {[%clk
0:02:29.4]} 32. Ke4 {[%clk 0:01:13.8]} 32... Qe5# {[%clk 0:02:28.1]} 0-1

[Event "Live Chess"]
[Site "Chess.com"]
[Date "2024.06.01"]
[Round "-"]
[White "Dhaydon19"]
[Black "nitrofish07"]
[Result "1-0"]
[WhiteElo "2701"]
[BlackElo "2151"]
[TimeControl "300"]
[EndTime "10:02:26 PDT"]
[Termination "Dhaydon19 won by resignation"]

1. d4 {[%clk 0:04:56.2]} 1... d5 {[%clk 0:04:58.7]} 2. Nf3 {[%clk 0:04:55.9]}
2... Nf6 {[%clk 0:04:57.4]} 3. g3 {[%clk 0:04:55.7]} 3... g6 {[%clk 0:04:53.3]}
4. Bg2 {[%clk 0:04:55.3]} 4... Bg7 {[%clk 0:04:53]} 5. O-O {[%clk 0:04:54.8]}
5... O-O {[%clk 0:04:52.7]} 6. c3 {[%clk 0:04:54.4]} 6... c6 {[%clk 0:04:51.3]}
7. Nbd2 {[%clk 0:04:52.5]} 7... Bf5 {[%clk 0:04:43.8]} 8. Re1 {[%clk 0:04:52.1]}
8... Nbd7 {[%clk 0:04:41.1]} 9. Nh4 {[%clk 0:04:51.2]} 9... e6 {[%clk
0:04:35.4]} 10. Nxf5 {[%clk 0:04:49.8]} 10... exf5 {[%clk 0:04:35.3]} 11. f3
{[%clk 0:04:49]} 11... Re8 {[%clk 0:04:33.9]} 12. Qb3 {[%clk 0:04:47.9]} 12...
Qb6 {[%clk 0:04:32.7]} 13. e4 {[%clk 0:04:47]} 13... fxe4 {[%clk 0:04:26.2]} 14.
fxe4 {[%clk 0:04:46]} 14... dxe4 {[%clk 0:04:25.8]} 15. Nxe4 {[%clk 0:04:39]}
15... Nxe4 {[%clk 0:04:25.1]} 16. Rxe4 {[%clk 0:04:38]} 16... Nf6 {[%clk
0:04:21.7]} 17. Rxe8+ {[%clk 0:04:31]} 17... Rxe8 {[%clk 0:04:21.6]} 18. Qxb6
{[%clk 0:04:29.5]} 18... axb6 {[%clk 0:04:14.9]} 19. Bd2 {[%clk 0:04:28.6]}
19... Kf8 {[%clk 0:04:07.7]} 20. Re1 {[%clk 0:04:19.7]} 20... Rxe1+ {[%clk
0:02:58.3]} 21. Bxe1 {[%clk 0:04:18.1]} 21... Ke7 {[%clk 0:02:56.9]} 22. h3
{[%clk 0:04:11.4]} 22... Kd6 {[%clk 0:02:53.1]} 23. Kf2 {[%clk 0:04:10.5]} 23...
h5 {[%clk 0:02:46.2]} 24. Ke2 {[%clk 0:04:09.4]} 24... Nd5 {[%clk 0:02:43.7]}
25. Bd2 {[%clk 0:04:07.8]} 25... Bf6 {[%clk 0:02:36.5]} 26. Kd3 {[%clk
0:04:06.3]} 26... h4 {[%clk 0:02:28.7]} 27. g4 {[%clk 0:04:03.9]} 27... g5
{[%clk 0:02:17.5]} 28. Ke4 {[%clk 0:04:01.7]} 28... Ne7 {[%clk 0:02:08.8]} 29.
c4 {[%clk 0:03:58.8]} 29... c5 {[%clk 0:02:06.4]} 30. dxc5+ {[%clk 0:03:56.3]}
30... bxc5 {[%clk 0:02:04.2]} 31. b3 {[%clk 0:03:53.3]} 31... Bd4 {[%clk
0:01:36.3]} 32. Bxg5 {[%clk 0:03:50.6]} 1-0